[Event "Titled Tuesday Blitz February 22 Early 2022"]
[White "Cramling Bellon, Anna"]
[Black "Redzisz, Michal"]
[WhiteFideId "32009232"]
[BlackFideId "21816107"]
[WhiteElo "1905"]
[BlackElo "1961"]
[Result "1-0"]
[Round "03"]
[TimeControl "180+1"]
[Date "2022.02.22"]
[WhiteClock "0:02:17"]
[BlackClock "0:00:09"]

1. d4 {[%clk 0:03:00]}  Nf6 {[%clk 0:02:59]} 2. c4 {[%clk 0:02:59]}  c5 {[%clk 0:02:59]} 3. d5 {[%clk 0:02:59]}  e6 {[%clk 0:03:00]} 4. Nc3 {[%clk 0:02:59]}  exd5 {[%clk 0:03:00]} 5. cxd5 {[%clk 0:03:00]}  d6 {[%clk 0:03:01]} 6. e4 {[%clk 0:02:58]}  g6 {[%clk 0:03:01]} 7. f4 {[%clk 0:02:58]}  Bg7 {[%clk 0:03:01]} 8. Bb5+ {[%clk 0:02:58]}  Nfd7 {[%clk 0:03:01]} 9. Be2 {[%clk 0:02:57]}  a6 {[%clk 0:02:58]} 10. a4 {[%clk 0:02:57]}  Qh4+ {[%clk 0:02:58]} 11. g3 {[%clk 0:02:56]}  Qe7 {[%clk 0:02:59]} 12. Nf3 {[%clk 0:02:55]}  O-O {[%clk 0:02:59]} 13. O-O {[%clk 0:02:55]}  Nf6 {[%clk 0:01:52]} 14. e5 {[%clk 0:02:54]}  dxe5 {[%clk 0:01:17]} 15. fxe5 {[%clk 0:02:52]}  Ng4 {[%clk 0:01:18]} 16. d6 {[%clk 0:02:52]}  Qd8 {[%clk 0:00:40]} 17. Nd5 {[%clk 0:02:49]}  Nc6 {[%clk 0:00:24]} 18. Nc7 {[%clk 0:02:35]}  Rb8 {[%clk 0:00:24]} 19. Bg5 {[%clk 0:02:32]}  Qd7 {[%clk 0:00:19]} 20. e6 {[%clk 0:02:18]}  fxe6 {[%clk 0:00:19]} 21. Bc4 {[%clk 0:02:18]}  Nge5 {[%clk 0:00:09]} 22. Bxe6+ {[%clk 0:02:17]} 1-0


[Site "https://www.chess.com"]

[Event "Titled Tuesday Blitz February 22 Early 2022"]
[White "Danaci, Ege"]
[Black "Sargsyan, Anna M."]
[WhiteFideId "34506748"]
[BlackFideId "13308130"]
[WhiteElo "1799"]
[BlackElo "2271"]
[Result "0-1"]
[Round "03"]
[TimeControl "180+1"]
[Date "2022.02.22"]
[WhiteClock "0:00:02"]
[BlackClock "0:01:22"]

1. e4 {[%clk 0:03:00]}  c6 {[%clk 0:02:49]} 2. Nc3 {[%clk 0:02:59]}  d5 {[%clk 0:02:49]} 3. Nf3 {[%clk 0:03:00]}  Bg4 {[%clk 0:02:49]} 4. h3 {[%clk 0:03:00]}  Bxf3 {[%clk 0:02:47]} 5. Qxf3 {[%clk 0:03:01]}  Nf6 {[%clk 0:02:48]} 6. d3 {[%clk 0:02:58]}  e6 {[%clk 0:02:48]} 7. Bd2 {[%clk 0:02:57]}  Nbd7 {[%clk 0:02:48]} 8. Qg3 {[%clk 0:02:57]}  Nh5 {[%clk 0:02:45]} 9. Qf3 {[%clk 0:02:47]}  Nhf6 {[%clk 0:02:45]} 10. g4 {[%clk 0:02:45]}  Bb4 {[%clk 0:02:43]} 11. a3 {[%clk 0:02:40]}  Ba5 {[%clk 0:02:42]} 12. g5 {[%clk 0:02:26]}  Ng8 {[%clk 0:02:41]} 13. h4 {[%clk 0:02:00]}  Ne7 {[%clk 0:02:40]} 14. Bh3 {[%clk 0:01:58]}  d4 {[%clk 0:02:39]} 15. Nb1 {[%clk 0:01:57]}  Qb6 {[%clk 0:02:32]} 16. b4 {[%clk 0:01:55]}  c5 {[%clk 0:02:29]} 17. bxa5 {[%clk 0:01:17]}  Qb2 {[%clk 0:02:26]} 18. O-O {[%clk 0:01:18]}  Qxa1 {[%clk 0:02:26]} 19. Nc3 {[%clk 0:01:18]}  Qb2 {[%clk 0:02:14]} 20. Rb1 {[%clk 0:01:08]}  Qxc2 {[%clk 0:02:14]} 21. Rxb7 {[%clk 0:00:53]}  Qxd2 {[%clk 0:02:13]} 22. Nd5 {[%clk 0:00:41]}  Nxd5 {[%clk 0:01:47]} 23. exd5 {[%clk 0:00:33]}  Qe1+ {[%clk 0:01:38]} 24. Kg2 {[%clk 0:00:32]}  Ne5 {[%clk 0:01:36]} 25. Qh5 {[%clk 0:00:06]}  O-O {[%clk 0:01:25]} 26. f4 {[%clk 0:00:03]}  Nxd3 {[%clk 0:01:22]} 27. dxe6 {[%clk 0:00:02]}  Nxf4+ {[%clk 0:01:22]} 0-1


[Site "https://www.chess.com"]

[Event "Titled Tuesday Blitz February 22 Early 2022"]
[White "De Souza Sa, Apolo"]
[Black "Richter, Nils"]
[WhiteFideId "324225390"]
[BlackFideId "12990809"]
[WhiteElo "1828"]
[BlackElo "2289"]
[Result "1/2-1/2"]
[Round "03"]
[TimeControl "180+1"]
[Date "2022.02.22"]
[WhiteClock "0:00:32"]
[BlackClock "0:00:20"]

1. d4 {[%clk 0:03:00]}  Nf6 {[%clk 0:02:59]} 2. c4 {[%clk 0:02:55]}  g6 {[%clk 0:02:59]} 3. g3 {[%clk 0:02:56]}  c5 {[%clk 0:02:56]} 4. d5 {[%clk 0:02:55]}  b5 {[%clk 0:02:55]} 5. cxb5 {[%clk 0:02:54]}  a6 {[%clk 0:02:55]} 6. bxa6 {[%clk 0:02:55]}  d6 {[%clk 0:02:52]} 7. Bg2 {[%clk 0:02:55]}  Bg7 {[%clk 0:02:52]} 8. Nf3 {[%clk 0:02:55]}  O-O {[%clk 0:02:52]} 9. O-O {[%clk 0:02:55]}  Nbd7 {[%clk 0:02:53]} 10. Re1 {[%clk 0:02:55]}  Nb6 {[%clk 0:02:43]} 11. e4 {[%clk 0:02:51]}  Bxa6 {[%clk 0:02:39]} 12. Qc2 {[%clk 0:02:46]}  Ng4 {[%clk 0:02:17]} 13. Nfd2 {[%clk 0:02:37]}  e6 {[%clk 0:01:59]} 14. Nc3 {[%clk 0:02:32]}  Nxf2 {[%clk 0:01:49]} 15. Kxf2 {[%clk 0:02:18]}  Bd4+ {[%clk 0:01:47]} 16. Re3 {[%clk 0:02:18]}  f5 {[%clk 0:01:33]} 17. Nf3 {[%clk 0:02:17]}  fxe4 {[%clk 0:01:31]} 18. Qxe4 {[%clk 0:02:08]}  exd5 {[%clk 0:01:24]} 19. Nxd5 {[%clk 0:01:50]}  Nxd5 {[%clk 0:01:24]} 20. Qxd5+ {[%clk 0:01:49]}  Kg7 {[%clk 0:01:20]} 21. Ke1 {[%clk 0:01:24]}  Bxe3 {[%clk 0:01:00]} 22. Bxe3 {[%clk 0:01:22]}  Qe7 {[%clk 0:01:00]} 23. Kf2 {[%clk 0:01:11]}  Bb7 {[%clk 0:00:58]} 24. Qd3 {[%clk 0:01:12]}  Rxf3+ {[%clk 0:00:50]} 25. Bxf3 {[%clk 0:01:10]}  Rf8 {[%clk 0:00:51]} 26. Bf4 {[%clk 0:01:04]}  g5 {[%clk 0:00:41]} 27. Re1 {[%clk 0:01:00]}  Qf7 {[%clk 0:00:30]} 28. Bxb7 {[%clk 0:00:56]}  Qxb7 {[%clk 0:00:26]} 29. Qxd6 {[%clk 0:00:49]}  Qxb2+ {[%clk 0:00:23]} 30. Kg1 {[%clk 0:00:46]}  gxf4 {[%clk 0:00:23]} 31. Re7+ {[%clk 0:00:43]}  Kg8 {[%clk 0:00:20]} 32. Qe6+ {[%clk 0:00:42]}  Kh8 {[%clk 0:00:18]} 33. Qe5+ {[%clk 0:00:40]}  Qxe5 {[%clk 0:00:18]} 34. Rxe5 {[%clk 0:00:41]}  fxg3 {[%clk 0:00:18]} 35. Rxc5 {[%clk 0:00:34]}  gxh2+ {[%clk 0:00:17]} 36. Kxh2 {[%clk 0:00:33]}  Rf2+ {[%clk 0:00:18]} 37. Kh3 {[%clk 0:00:31]}  Rxa2 {[%clk 0:00:18]} 38. Rc7 {[%clk 0:00:30]}  Ra6 {[%clk 0:00:17]} 39. Kh4 {[%clk 0:00:29]}  Rh6+ {[%clk 0:00:17]} 40. Kg5 {[%clk 0:00:30]}  Rg6+ {[%clk 0:00:18]} 41. Kh5 {[%clk 0:00:31]}  Rg7 {[%clk 0:00:18]} 42. Rc8+ {[%clk 0:00:30]}  Rg8 {[%clk 0:00:18]} 43. Rc7 {[%clk 0:00:31]}  Rg7 {[%clk 0:00:18]} 44. Rc8+ {[%clk 0:00:31]}  Rg8 {[%clk 0:00:19]} 45. Rc7 {[%clk 0:00:32]}  Rg7 {[%clk 0:00:20]} 1/2-1/2


[Site "https://www.chess.com"]

[Event "Titled Tuesday Blitz February 22 Early 2022"]
[White "Deac, Bogdan-Daniel"]
[Black "Samadov, Read"]
[WhiteFideId "1226380"]
[BlackFideId "13417444"]
[WhiteElo "2646"]
[BlackElo "2084"]
[Result "1-0"]
[Round "03"]
[TimeControl "180+1"]
[Date "2022.02.22"]
[WhiteClock "0:00:06"]
[BlackClock "0:00:05"]

1. e4 {[%clk 0:03:00]}  c5 {[%clk 0:02:59]} 2. Nf3 {[%clk 0:03:00]}  d6 {[%clk 0:03:00]} 3. d4 {[%clk 0:03:00]}  cxd4 {[%clk 0:03:01]} 4. Nxd4 {[%clk 0:03:01]}  Nf6 {[%clk 0:03:01]} 5. Nc3 {[%clk 0:03:01]}  a6 {[%clk 0:03:02]} 6. h3 {[%clk 0:03:00]}  e5 {[%clk 0:03:01]} 7. Nb3 {[%clk 0:02:57]}  Be6 {[%clk 0:03:01]} 8. f4 {[%clk 0:02:57]}  g6 {[%clk 0:03:01]} 9. Be2 {[%clk 0:02:56]}  Nbd7 {[%clk 0:03:00]} 10. O-O {[%clk 0:02:56]}  Rc8 {[%clk 0:03:00]} 11. a4 {[%clk 0:02:57]}  Be7 {[%clk 0:02:45]} 12. a5 {[%clk 0:02:56]}  exf4 {[%clk 0:02:37]} 13. Bxf4 {[%clk 0:02:55]}  Ne5 {[%clk 0:02:37]} 14. Bh6 {[%clk 0:02:44]}  Bf8 {[%clk 0:02:25]} 15. Qd2 {[%clk 0:01:58]}  Bxh6 {[%clk 0:01:45]} 16. Qxh6 {[%clk 0:01:56]}  Rg8 {[%clk 0:01:29]} 17. Nd4 {[%clk 0:01:42]}  Qe7 {[%clk 0:01:15]} 18. Rad1 {[%clk 0:01:25]}  Rc5 {[%clk 0:01:09]} 19. Qd2 {[%clk 0:00:45]}  Nfd7 {[%clk 0:00:38]} 20. Na4 {[%clk 0:00:26]}  Rc8 {[%clk 0:00:33]} 21. b3 {[%clk 0:00:24]}  h5 {[%clk 0:00:27]} 22. c4 {[%clk 0:00:19]}  Nc6 {[%clk 0:00:20]} 23. Nxe6 {[%clk 0:00:08]}  fxe6 {[%clk 0:00:18]} 24. Qc3 {[%clk 0:00:06]}  Rf8 {[%clk 0:00:12]} 25. Rxf8+ {[%clk 0:00:05]}  Qxf8 {[%clk 0:00:13]} 26. Qg3 {[%clk 0:00:05]}  Nce5 {[%clk 0:00:12]} 27. Nb6 {[%clk 0:00:03]}  Nxb6 {[%clk 0:00:12]} 28. axb6 {[%clk 0:00:04]}  Qe7 {[%clk 0:00:08]} 29. Qe3 {[%clk 0:00:03]}  Kf8 {[%clk 0:00:07]} 30. Qd4 {[%clk 0:00:02]}  Rc6 {[%clk 0:00:04]} 31. b4 {[%clk 0:00:02]}  Kg8 {[%clk 0:00:03]} 32. c5 {[%clk 0:00:02]}  Nf7 {[%clk 0:00:02]} 33. Rc1 {[%clk 0:00:03]}  dxc5 {[%clk 0:00:02]} 34. bxc5 {[%clk 0:00:04]}  e5 {[%clk 0:00:03]} 35. Qd5 {[%clk 0:00:04]}  Kg7 {[%clk 0:00:03]} 36. Rf1 {[%clk 0:00:03]}  Rxc5 {[%clk 0:00:02]} 37. Rxf7+ {[%clk 0:00:03]}  Qxf7 {[%clk 0:00:03]} 38. Qxc5 {[%clk 0:00:04]}  Qf4 {[%clk 0:00:03]} 39. Qc7+ {[%clk 0:00:04]}  Kh6 {[%clk 0:00:03]} 40. Qc4 {[%clk 0:00:04]}  Qe3+ {[%clk 0:00:03]} 41. Kh1 {[%clk 0:00:04]}  Qf2 {[%clk 0:00:03]} 42. Bf3 {[%clk 0:00:03]}  h4 {[%clk 0:00:04]} 43. Qc1+ {[%clk 0:00:03]}  Kh7 {[%clk 0:00:03]} 44. Qc7+ {[%clk 0:00:03]}  Kh6 {[%clk 0:00:03]} 45. Qxe5 {[%clk 0:00:04]}  Qe1+ {[%clk 0:00:03]} 46. Kh2 {[%clk 0:00:04]}  a5 {[%clk 0:00:04]} 47. Qh8+ {[%clk 0:00:04]}  Kg5 {[%clk 0:00:04]} 48. Qd8+ {[%clk 0:00:04]}  Kf4 {[%clk 0:00:04]} 49. Qf6+ {[%clk 0:00:04]}  Ke3 {[%clk 0:00:05]} 50. Qxg6 {[%clk 0:00:04]}  a4 {[%clk 0:00:04]} 51. e5 {[%clk 0:00:05]}  a3 {[%clk 0:00:04]} 52. Qe4+ {[%clk 0:00:05]}  Kf2 {[%clk 0:00:05]} 53. Qxe1+ {[%clk 0:00:06]}  Kxe1 {[%clk 0:00:05]} 54. Bd5 {[%clk 0:00:06]} 1-0


[Site "https://www.chess.com"]

[Event "Titled Tuesday Blitz February 22 Early 2022"]
[White "Dilmukhametov, Artur"]
[Black "Pires, Marcos Vinicius Torsani"]
[WhiteFideId "24179922"]
[BlackFideId "2118939"]
[WhiteElo "2266"]
[BlackElo "2273"]
[Result "1/2-1/2"]
[Round "03"]
[TimeControl "180+1"]
[Date "2022.02.22"]
[WhiteClock "0:00:15"]
[BlackClock "0:00:08"]

1. e4 {[%clk 0:03:00]}  c5 {[%clk 0:02:56]} 2. f4 {[%clk 0:03:00]}  g6 {[%clk 0:02:53]} 3. d4 {[%clk 0:02:59]}  cxd4 {[%clk 0:02:53]} 4. Qxd4 {[%clk 0:02:54]}  Nf6 {[%clk 0:02:52]} 5. e5 {[%clk 0:02:54]}  Nc6 {[%clk 0:02:53]} 6. Qd3 {[%clk 0:02:55]}  Ng8 {[%clk 0:02:44]} 7. Nf3 {[%clk 0:02:53]}  Bg7 {[%clk 0:02:44]} 8. c3 {[%clk 0:02:51]}  Nh6 {[%clk 0:02:39]} 9. Be2 {[%clk 0:02:49]}  O-O {[%clk 0:02:39]} 10. O-O {[%clk 0:02:48]}  Nf5 {[%clk 0:02:35]} 11. Kh1 {[%clk 0:02:38]}  d6 {[%clk 0:02:34]} 12. exd6 {[%clk 0:02:32]}  Qxd6 {[%clk 0:02:31]} 13. Qxd6 {[%clk 0:02:32]}  Nxd6 {[%clk 0:02:32]} 14. Be3 {[%clk 0:02:31]}  b6 {[%clk 0:02:29]} 15. Nbd2 {[%clk 0:02:26]}  Bb7 {[%clk 0:02:28]} 16. Bg1 {[%clk 0:02:25]}  Rfd8 {[%clk 0:02:23]} 17. Rad1 {[%clk 0:02:25]}  e6 {[%clk 0:02:23]} 18. Nc4 {[%clk 0:02:25]}  Nxc4 {[%clk 0:02:19]} 19. Bxc4 {[%clk 0:02:26]}  Bh6 {[%clk 0:02:13]} 20. Be3 {[%clk 0:02:19]}  Ne7 {[%clk 0:01:57]} 21. Bc1 {[%clk 0:02:12]}  Bxf3 {[%clk 0:01:49]} 22. Rxd8+ {[%clk 0:02:06]}  Rxd8 {[%clk 0:01:49]} 23. Rxf3 {[%clk 0:02:04]}  e5 {[%clk 0:01:32]} 24. g3 {[%clk 0:01:56]}  Rd1+ {[%clk 0:01:26]} 25. Rf1 {[%clk 0:01:54]}  Rxf1+ {[%clk 0:01:24]} 26. Bxf1 {[%clk 0:01:55]}  exf4 {[%clk 0:01:22]} 27. Bxf4 {[%clk 0:01:54]}  Bxf4 {[%clk 0:01:21]} 28. gxf4 {[%clk 0:01:55]}  f5 {[%clk 0:01:04]} 29. Kg2 {[%clk 0:01:50]}  Kf7 {[%clk 0:01:04]} 30. Kf3 {[%clk 0:01:48]}  Ke6 {[%clk 0:01:03]} 31. b3 {[%clk 0:01:44]}  h6 {[%clk 0:01:01]} 32. h4 {[%clk 0:01:39]}  Kf6 {[%clk 0:00:48]} 33. a4 {[%clk 0:01:36]}  Nd5 {[%clk 0:00:42]} 34. c4 {[%clk 0:01:33]}  Nb4 {[%clk 0:00:38]} 35. Kg3 {[%clk 0:01:29]}  Nc2 {[%clk 0:00:33]} 36. Bg2 {[%clk 0:01:25]}  a5 {[%clk 0:00:31]} 37. h5 {[%clk 0:01:07]}  g5 {[%clk 0:00:27]} 38. fxg5+ {[%clk 0:01:06]}  Kxg5 {[%clk 0:00:27]} 39. Bf3 {[%clk 0:01:00]}  Nd4 {[%clk 0:00:21]} 40. Bd1 {[%clk 0:01:00]}  f4+ {[%clk 0:00:22]} 41. Kg2 {[%clk 0:01:00]}  Kf5 {[%clk 0:00:20]} 42. Kf2 {[%clk 0:00:55]}  Ke4 {[%clk 0:00:20]} 43. Kf1 {[%clk 0:00:44]}  Kd3 {[%clk 0:00:18]} 44. Ke1 {[%clk 0:00:43]}  Kc3 {[%clk 0:00:19]} 45. Kf2 {[%clk 0:00:41]}  Kd2 {[%clk 0:00:19]} 46. Bg4 {[%clk 0:00:39]}  Kc2 {[%clk 0:00:13]} 47. Bd7 {[%clk 0:00:28]}  Kxb3 {[%clk 0:00:12]} 48. Be8 {[%clk 0:00:27]}  Kxc4 {[%clk 0:00:10]} 49. Bd7 {[%clk 0:00:26]}  Kb4 {[%clk 0:00:11]} 50. Be8 {[%clk 0:00:26]}  Kc4 {[%clk 0:00:08]} 51. Bd7 {[%clk 0:00:26]}  Kc5 {[%clk 0:00:09]} 52. Be8 {[%clk 0:00:26]}  Kd6 {[%clk 0:00:09]} 53. Bg6 {[%clk 0:00:25]}  Ke5 {[%clk 0:00:10]} 54. Be8 {[%clk 0:00:25]}  Kf6 {[%clk 0:00:10]} 55. Bb5 {[%clk 0:00:25]}  Kg5 {[%clk 0:00:10]} 56. Be8 {[%clk 0:00:25]}  Ne6 {[%clk 0:00:10]} 57. Kf3 {[%clk 0:00:24]}  Ng7 {[%clk 0:00:10]} 58. Bb5 {[%clk 0:00:23]}  Nxh5 {[%clk 0:00:10]} 59. Ke4 {[%clk 0:00:23]}  Nf6+ {[%clk 0:00:11]} 60. Ke5 {[%clk 0:00:23]}  Ng4+ {[%clk 0:00:11]} 61. Kd6 {[%clk 0:00:23]}  Ne3 {[%clk 0:00:12]} 62. Kc6 {[%clk 0:00:24]}  f3 {[%clk 0:00:11]} 63. Kxb6 {[%clk 0:00:24]}  f2 {[%clk 0:00:11]} 64. Kxa5 {[%clk 0:00:24]}  f1=Q {[%clk 0:00:12]} 65. Bxf1 {[%clk 0:00:25]}  Nxf1 {[%clk 0:00:13]} 66. Kb5 {[%clk 0:00:22]}  Nd2 {[%clk 0:00:08]} 67. a5 {[%clk 0:00:21]}  Ne4 {[%clk 0:00:09]} 68. a6 {[%clk 0:00:20]}  Nd6+ {[%clk 0:00:09]} 69. Kc6 {[%clk 0:00:20]}  Nc8 {[%clk 0:00:09]} 70. Kc7 {[%clk 0:00:19]}  Na7 {[%clk 0:00:09]} 71. Kb7 {[%clk 0:00:17]}  Nb5 {[%clk 0:00:09]} 72. Kc6 {[%clk 0:00:16]}  Na7+ {[%clk 0:00:08]} 73. Kb7 {[%clk 0:00:16]}  Nb5 {[%clk 0:00:08]} 74. Kc6 {[%clk 0:00:17]}  Na7+ {[%clk 0:00:08]} 75. Kb6 {[%clk 0:00:16]}  Nc8+ {[%clk 0:00:08]} 76. Kb7 {[%clk 0:00:16]}  Nd6+ {[%clk 0:00:08]} 77. Kc6 {[%clk 0:00:15]}  Nc8 {[%clk 0:00:07]} 78. Kb7 {[%clk 0:00:14]}  Nd6+ {[%clk 0:00:08]} 79. Kc6 {[%clk 0:00:15]} 1/2-1/2


[Site "https://www.chess.com"]

[Event "Titled Tuesday Blitz February 22 Early 2022"]
[White "Wagner, Dinara"]
[Black "Rudykh, Stepan"]
[WhiteFideId "24157570"]
[BlackFideId "4180321"]
[WhiteElo "2216"]
[BlackElo "2120"]
[Result "1-0"]
[Round "03"]
[TimeControl "180+1"]
[Date "2022.02.22"]
[WhiteClock "0:01:32"]
[BlackClock "0:01:58"]

1. Nf3 {[%clk 0:02:56]}  e6 {[%clk 0:02:59]} 2. c4 {[%clk 0:02:56]}  f5 {[%clk 0:02:59]} 3. g3 {[%clk 0:02:54]}  Nf6 {[%clk 0:03:00]} 4. Bg2 {[%clk 0:02:55]}  Be7 {[%clk 0:03:00]} 5. d3 {[%clk 0:02:55]}  O-O {[%clk 0:03:00]} 6. Nc3 {[%clk 0:02:56]}  d6 {[%clk 0:03:01]} 7. O-O {[%clk 0:02:56]}  a5 {[%clk 0:03:00]} 8. e4 {[%clk 0:02:55]}  e5 {[%clk 0:02:59]} 9. exf5 {[%clk 0:02:50]}  Bxf5 {[%clk 0:02:58]} 10. Nh4 {[%clk 0:02:51]}  Bc8 {[%clk 0:02:57]} 11. d4 {[%clk 0:02:28]}  Nc6 {[%clk 0:02:53]} 12. d5 {[%clk 0:02:25]}  Nb8 {[%clk 0:02:51]} 13. Be3 {[%clk 0:02:22]}  b6 {[%clk 0:02:45]} 14. Nf3 {[%clk 0:02:15]}  Bg4 {[%clk 0:02:39]} 15. h3 {[%clk 0:02:15]}  Bc8 {[%clk 0:02:35]} 16. Ng5 {[%clk 0:02:14]}  Qe8 {[%clk 0:02:21]} 17. Ne6 {[%clk 0:02:13]}  Bxe6 {[%clk 0:02:22]} 18. dxe6 {[%clk 0:02:13]}  Ra6 {[%clk 0:02:19]} 19. Nd5 {[%clk 0:02:13]}  Bd8 {[%clk 0:02:17]} 20. e7 {[%clk 0:02:09]}  Bxe7 {[%clk 0:02:16]} 21. Nxc7 {[%clk 0:02:09]}  Qc8 {[%clk 0:02:15]} 22. Nxa6 {[%clk 0:02:08]}  Nxa6 {[%clk 0:02:14]} 23. Bxb6 {[%clk 0:02:06]}  Qxc4 {[%clk 0:02:11]} 24. Bxa5 {[%clk 0:02:01]}  d5 {[%clk 0:02:08]} 25. Rc1 {[%clk 0:01:35]}  Qb5 {[%clk 0:02:05]} 26. Bd2 {[%clk 0:01:35]}  Nc5 {[%clk 0:02:01]} 27. Bg5 {[%clk 0:01:33]}  e4 {[%clk 0:01:58]} 28. Bxf6 {[%clk 0:01:32]} 1-0


[Site "https://www.chess.com"]

[Event "Titled Tuesday Blitz February 22 Early 2022"]
[White "Dubov, Daniil"]
[Black "Melian, Juan Sebastian"]
[WhiteFideId "24126055"]
[BlackFideId "3706575"]
[WhiteElo "2791"]
[BlackElo "1842"]
[Result "1-0"]
[Round "03"]
[TimeControl "180+1"]
[Date "2022.02.22"]
[WhiteClock "0:00:52"]
[BlackClock "0:00:01"]

1. d4 {[%clk 0:02:57]}  Nf6 {[%clk 0:03:00]} 2. Nf3 {[%clk 0:02:58]}  e6 {[%clk 0:03:00]} 3. c4 {[%clk 0:02:58]}  Bb4+ {[%clk 0:02:59]} 4. Nbd2 {[%clk 0:02:58]}  d5 {[%clk 0:02:55]} 5. g3 {[%clk 0:02:58]}  O-O {[%clk 0:02:53]} 6. Bg2 {[%clk 0:02:59]}  b6 {[%clk 0:02:46]} 7. O-O {[%clk 0:03:00]}  Bb7 {[%clk 0:02:46]} 8. Ne5 {[%clk 0:03:00]}  Qc8 {[%clk 0:02:43]} 9. cxd5 {[%clk 0:02:57]}  Nxd5 {[%clk 0:02:39]} 10. Ndf3 {[%clk 0:02:56]}  Nf6 {[%clk 0:02:28]} 11. Bf4 {[%clk 0:02:48]}  Bd6 {[%clk 0:02:22]} 12. Rc1 {[%clk 0:02:47]}  Qd8 {[%clk 0:02:22]} 13. Qc2 {[%clk 0:02:46]}  Qe7 {[%clk 0:02:05]} 14. Bg5 {[%clk 0:02:42]}  Nbd7 {[%clk 0:01:31]} 15. Nxd7 {[%clk 0:02:16]}  Qxd7 {[%clk 0:01:32]} 16. Ne5 {[%clk 0:02:16]}  Bxe5 {[%clk 0:01:11]} 17. Bxb7 {[%clk 0:02:14]}  Qxd4 {[%clk 0:00:41]} 18. Bxa8 {[%clk 0:02:05]}  Rxa8 {[%clk 0:00:42]} 19. Rfd1 {[%clk 0:02:04]}  Qg4 {[%clk 0:00:29]} 20. Qc6 {[%clk 0:01:59]}  Rf8 {[%clk 0:00:22]} 21. Bxf6 {[%clk 0:01:54]}  gxf6 {[%clk 0:00:23]} 22. Rd2 {[%clk 0:01:47]}  Qg6 {[%clk 0:00:15]} 23. Kg2 {[%clk 0:01:46]}  Bf4 {[%clk 0:00:14]} 24. e3 {[%clk 0:01:46]}  Be5 {[%clk 0:00:13]} 25. Rc4 {[%clk 0:01:44]}  Bd6 {[%clk 0:00:11]} 26. Qf3 {[%clk 0:01:43]}  f5 {[%clk 0:00:11]} 27. e4 {[%clk 0:01:41]}  fxe4 {[%clk 0:00:10]} 28. Rxe4 {[%clk 0:01:40]}  Kh8 {[%clk 0:00:10]} 29. Rg4 {[%clk 0:01:39]}  Qh6 {[%clk 0:00:10]} 30. Re2 {[%clk 0:01:39]}  f5 {[%clk 0:00:10]} 31. Rh4 {[%clk 0:01:38]}  Qg6 {[%clk 0:00:08]} 32. Qh5 {[%clk 0:01:20]}  Qxh5 {[%clk 0:00:08]} 33. Rxh5 {[%clk 0:01:20]}  Kg7 {[%clk 0:00:09]} 34. Rxe6 {[%clk 0:01:19]}  f4 {[%clk 0:00:05]} 35. Rg5+ {[%clk 0:01:10]}  Kh8 {[%clk 0:00:06]} 36. g4 {[%clk 0:01:02]}  f3+ {[%clk 0:00:02]} 37. Kh3 {[%clk 0:01:02]}  Bf4 {[%clk 0:00:03]} 38. Rf5 {[%clk 0:01:01]}  Rxf5 {[%clk 0:00:01]} 39. gxf5 {[%clk 0:00:59]}  Bc1 {[%clk 0:00:01]} 40. b3 {[%clk 0:00:59]}  Kg8 {[%clk 0:00:01]} 41. Re7 {[%clk 0:00:58]}  Bf4 {[%clk 0:00:02]} 42. f6 {[%clk 0:00:59]}  h6 {[%clk 0:00:02]} 43. Kg4 {[%clk 0:00:53]}  Bxh2 {[%clk 0:00:02]} 44. Kf5 {[%clk 0:00:52]}  Bd6 {[%clk 0:00:01]} 45. Kg6 {[%clk 0:00:52]} 1-0


[Site "https://www.chess.com"]

[Event "Titled Tuesday Blitz February 22 Early 2022"]
[White "Dushyant Sharma"]
[Black "Csonka, Balazs"]
[WhiteFideId "25065130"]
[BlackFideId "742910"]
[WhiteElo "2012"]
[BlackElo "2404"]
[Result "0-1"]
[Round "03"]
[TimeControl "180+1"]
[Date "2022.02.22"]
[WhiteClock "0:00:08"]
[BlackClock "0:00:05"]

1. e4 {[%clk 0:03:00]}  c6 {[%clk 0:02:58]} 2. d4 {[%clk 0:03:00]}  d5 {[%clk 0:02:58]} 3. exd5 {[%clk 0:03:01]}  cxd5 {[%clk 0:02:58]} 4. Bd3 {[%clk 0:03:02]}  Nc6 {[%clk 0:02:55]} 5. c3 {[%clk 0:03:01]}  Qc7 {[%clk 0:02:55]} 6. Ne2 {[%clk 0:03:01]}  Bg4 {[%clk 0:02:55]} 7. Na3 {[%clk 0:03:01]}  e6 {[%clk 0:02:54]} 8. Nb5 {[%clk 0:02:54]}  Qd7 {[%clk 0:02:46]} 9. Bf4 {[%clk 0:02:52]}  Rc8 {[%clk 0:02:46]} 10. h3 {[%clk 0:02:51]}  Bxe2 {[%clk 0:02:36]} 11. Qxe2 {[%clk 0:02:51]}  a6 {[%clk 0:02:36]} 12. Na3 {[%clk 0:02:51]}  Bxa3 {[%clk 0:02:36]} 13. bxa3 {[%clk 0:02:52]}  Nge7 {[%clk 0:02:23]} 14. O-O {[%clk 0:02:51]}  O-O {[%clk 0:02:22]} 15. Rab1 {[%clk 0:02:51]}  Na5 {[%clk 0:02:07]} 16. Rfc1 {[%clk 0:02:38]}  Nc4 {[%clk 0:01:58]} 17. a4 {[%clk 0:02:34]}  Rc6 {[%clk 0:01:44]} 18. Qh5 {[%clk 0:02:26]}  Ng6 {[%clk 0:01:41]} 19. Bg3 {[%clk 0:02:14]}  Rfc8 {[%clk 0:01:39]} 20. f4 {[%clk 0:02:10]}  Nd2 {[%clk 0:00:59]} 21. Rb2 {[%clk 0:01:38]}  Ne4 {[%clk 0:00:57]} 22. Bxe4 {[%clk 0:01:30]}  dxe4 {[%clk 0:00:58]} 23. Rb3 {[%clk 0:01:26]}  Ne7 {[%clk 0:00:50]} 24. Qe5 {[%clk 0:01:14]}  f5 {[%clk 0:00:35]} 25. Kh2 {[%clk 0:01:01]}  b6 {[%clk 0:00:29]} 26. c4 {[%clk 0:00:57]}  Ng6 {[%clk 0:00:27]} 27. d5 {[%clk 0:00:29]}  Nxe5 {[%clk 0:00:26]} 28. dxc6 {[%clk 0:00:27]}  Qd2 {[%clk 0:00:14]} 29. Rcb1 {[%clk 0:00:16]}  Nxc6 {[%clk 0:00:13]} 30. Rxb6 {[%clk 0:00:15]}  e3 {[%clk 0:00:11]} 31. c5 {[%clk 0:00:13]}  Nd4 {[%clk 0:00:06]} 32. R6b2 {[%clk 0:00:12]}  Qd3 {[%clk 0:00:06]} 33. Rb8 {[%clk 0:00:07]}  Rxb8 {[%clk 0:00:05]} 34. Rxb8+ {[%clk 0:00:08]}  Kf7 {[%clk 0:00:05]} 35. Rd8 {[%clk 0:00:09]}  Nf3+ {[%clk 0:00:04]} 36. gxf3 {[%clk 0:00:08]}  Qxd8 {[%clk 0:00:05]} 0-1


[Site "https://www.chess.com"]